{"text_format":"1","workbook":"xlsx","n_sheets":1,"sheets":["G7023_匯款申請書(多筆)直接輸入版"],"not_rendered":{"charts":0,"images":0,"macros":1,"external_links":0,"defined_names":1,"comments":1,"pivot_tables":0},"unopened":[],"bounds":{"document_bytes":16777216,"sheet_cells":100000,"rows_first":2000,"rows_last":500,"rows_between":2000,"halvings":0,"cell_chars":16384,"cell_head_chars":4096},"cells_cut":0,"cells_raw":0,"read":"whole","date_system":"1900"}

{"sheet":"G7023_匯款申請書(多筆)直接輸入版","index":0,"n_rows":129,"n_cols":35,"rows_kept":129,"cut":false,"hidden":false,"merged":[[46,18,46,19],[103,21,104,29],[105,21,106,29],[107,21,108,29],[109,21,110,29],[111,21,112,29],[19,21,20,29],[21,21,22,29],[23,21,24,29],[25,21,26,29],[27,21,28,29],[49,21,49,29],[50,21,50,29],[91,21,91,29],[92,21,92,29],[51,21,52,29],[53,21,54,29],[55,21,56,29],[57,21,58,29],[59,21,60,29],[61,21,62,29],[63,21,64,29],[65,21,66,29],[67,21,68,29],[34,24,35,30],[35,6,35,23],[30,25,30,30],[23,3,23,5],[24,3,24,5],[25,3,25,5],[26,3,26,5],[27,3,27,5],[103,30,104,30],[63,7,63,20],[65,7,65,20],[67,7,67,20],[69,7,69,20],[93,7,93,20],[95,7,95,20],[55,7,55,20],[57,7,57,20],[59,7,59,20],[61,7,61,20],[93,21,94,29],[36,7,37,23],[48,15,48,16],[43,8,43,10],[73,26,73,30],[63,3,63,5],[59,30,60,30],[61,30,62,30],[63,30,64,30],[65,30,66,30],[67,30,68,30],[7,3,8,6],[10,3,10,5],[26,7,26,20],[28,7,28,20],[9,3,9,5],[11,3,11,5],[12,3,12,5],[18,3,18,5],[21,3,21,5],[19,7,19,20],[21,7,21,20],[23,7,23,20],[25,7,25,20],[28,3,28,5],[27,7,27,20],[7,21,7,29],[8,21,8,29],[29,19,29,20],[10,31,14,31],[9,1,16,1],[9,0,16,0],[13,3,13,5],[14,3,14,5],[15,3,15,5],[16,3,16,5],[22,3,22,5],[19,3,19,5],[20,3,20,5],[17,3,17,5],[11,21,12,29],[9,21,10,29],[13,21,14,29],[15,21,16,29],[17,21,18,29],[9,7,9,20],[11,7,11,20],[13,7,13,20],[15,7,15,20],[17,7,17,20],[4,18,4,19],[10,7,10,20],[12,7,12,20],[7,7,8,20],[20,7,20,20],[24,7,24,20],[22,7,22,20],[14,7,14,20],[16,7,16,20],[18,7,18,20],[6,15,6,16],[51,0,58,0],[51,1,58,1],[51,3,51,5],[52,3,52,5],[32,25,32,30],[30,7,32,22],[56,7,56,20],[49,3,50,6],[49,7,50,20],[52,7,52,20],[57,3,57,5],[58,3,58,5],[57,30,58,30],[29,3,32,3],[29,4,29,6],[30,4,32,6],[29,7,29,18],[51,7,51,20],[53,7,53,20],[51,30,52,30],[36,3,37,6],[29,21,29,29],[38,5,39,23],[31,26,31,30],[52,31,56,31],[53,3,53,5],[54,3,54,5],[54,7,54,20],[55,3,55,5],[56,3,56,5],[68,3,68,5],[68,7,68,20],[69,3,69,5],[58,7,58,20],[59,3,59,5],[60,3,60,5],[60,7,60,20],[61,3,61,5],[62,3,62,5],[62,7,62,20],[64,3,64,5],[64,7,64,20],[65,3,65,5],[66,3,66,5],[66,7,66,20],[67,3,67,5],[53,30,54,30],[55,30,56,30],[72,4,74,6],[72,7,74,22],[70,3,70,5],[70,7,70,20],[69,30,70,30],[71,21,71,29],[90,15,90,16],[91,3,92,6],[91,7,92,20],[74,25,74,30],[71,3,74,3],[71,4,71,6],[71,7,71,18],[71,19,71,20],[72,25,72,30],[85,8,85,10],[88,18,88,19],[69,21,70,29],[113,19,113,20],[93,0,100,0],[93,1,100,1],[93,3,93,5],[94,3,94,5],[97,7,97,20],[99,7,99,20],[95,21,96,29],[97,21,98,29],[99,21,100,29],[105,7,105,20],[107,7,107,20],[106,3,106,5],[106,7,106,20],[107,3,107,5],[108,3,108,5],[108,7,108,20],[109,3,109,5],[105,3,105,5],[94,31,98,31],[95,3,95,5],[96,3,96,5],[96,7,96,20],[97,3,97,5],[98,3,98,5],[98,7,98,20],[94,7,94,20],[101,3,101,5],[93,30,94,30],[95,30,96,30],[99,3,99,5],[100,3,100,5],[100,7,100,20],[101,21,102,29],[102,3,102,5],[102,7,102,20],[97,30,98,30],[99,30,100,30],[101,30,102,30],[101,7,101,20],[23,30,24,30],[25,30,26,30],[114,25,114,30],[115,26,115,30],[116,25,116,30],[110,3,110,5],[110,7,110,20],[111,3,111,5],[112,3,112,5],[112,7,112,20],[113,3,116,3],[109,30,110,30],[111,30,112,30],[114,4,116,6],[114,7,116,22],[113,21,113,29],[103,3,103,5],[104,3,104,5],[104,7,104,20],[103,7,103,20],[113,4,113,6],[113,7,113,18],[109,7,109,20],[111,7,111,20],[27,30,28,30],[124,15,124,18],[105,30,106,30],[107,30,108,30],[3,3,3,4],[1,1,1,6],[1,8,1,14],[127,8,127,10],[79,3,82,3],[118,7,119,30],[120,7,121,30],[122,7,122,30],[123,7,123,30],[124,7,124,14],[7,30,8,30],[49,30,50,30],[91,30,92,30],[9,30,10,30],[11,30,12,30],[13,30,14,30],[15,30,16,30],[17,30,18,30],[19,30,20,30],[21,30,22,30]]}
[]
[null,"全手續費合計"]
[null,null,null,null,null,null,null,null,null,null,null,null,null,null,null,null,null,null,null,null,null,null,null,null,null,null,null,null,null,null,null,null,null,"☐"]
[null,null,null,"☐",null,"傳真指示扣帳 (請勾選。僅限與本行簽訂電話傳真交易授權書者適用)",null,null,null,null,null,null,null,null,null,null,null,null,null,null,null,null,null,null,null,null,null,null,null,null,null,null,null,"☑"]
[null,null,null,null,null,null,null,null,null,"日 商 瑞 穗 銀 行",null,null,null,null,null,null,null,null,"臺北",null,"分行",null,null,null,null,null,null,null,null,null,null,null,null,"臺北","96978630"]
[null,null,null,null,null,null,null,null,null,"Mizuho Bank, Ltd.      匯款申請書 (多筆)",null,null,null,null,null,null,null,null,null,null,null,null,null,null,null,null,null,null,null,null,null,null,null,"臺中","28425252"]
[null,null,null,null,null,null,null,null,null,null,null,null,null,null,"中華民國",null,null,"年",null,"月",null,"日",null,null,null,null,null,null,null,null,null,null,null,"高雄","86893726"]
[null,null,null,"解 款 行",null,null,null,"收   款   人   帳   號   /   戶   名",null,null,null,null,null,null,null,null,null,null,null,null,null,"匯   款   金   額",null,null,null,null,null,null,null,null,"手續費"]
[null,null,null,null,null,null,null,null,null,null,null,null,null,null,null,null,null,null,null,null,null,"億仟佰 拾萬仟 佰拾元 "]
["◎請申請人詳閱客戶留底說明","◎粗線內各項申請人自行填妥",1,null,null,null,"銀行",null,null,null,null,null,null,null,null,null,null,null,null,null,null,null,null,null,null,null,null,null,null,null,null,null,null,50000000,{"$f":"LEN(H10)","v":0}]
[null,null,null,null,null,null,"分行",null,null,null,null,null,null,null,null,null,null,null,null,null,null,null,null,null,null,null,null,null,null,null,null,"①預金存查聯",null,{"$f":"V10","v":0}]
[null,null,2,null,null,null,"銀行",null,null,null,null,null,null,null,null,null,null,null,null,null,null,null,null,null,null,null,null,null,null,null,null,null,null,null,{"$f":"LEN(H12)","v":0}]
[null,null,null,null,null,null,"分行",null,null,null,null,null,null,null,null,null,null,null,null,null,null,null,null,null,null,null,null,null,null,null,null,null,null,{"$f":"V12","v":0}]
[null,null,3,null,null,null,"銀行",null,null,null,null,null,null,null,null,null,null,null,null,null,null,null,null,null,null,null,null,null,null,null,null,null,null,null,{"$f":"LEN(H14)","v":0}]
[null,null,null,null,null,null,"分行",null,null,null,null,null,null,null,null,null,null,null,null,null,null,null,null,null,null,null,null,null,null,null,null,null,null,{"$f":"V14","v":0}]
[null,null,4,null,null,null,"銀行",null,null,null,null,null,null,null,null,null,null,null,null,null,null,null,null,null,null,null,null,null,null,null,null,null,null,null,{"$f":"LEN(H16)","v":0}]
[null,null,null,null,null,null,"分行",null,null,null,null,null,null,null,null,null,null,null,null,null,null,null,null,null,null,null,null,null,null,null,null,null,null,{"$f":"V16","v":0}]
[null,null,5,null,null,null,"銀行",null,null,null,null,null,null,null,null,null,null,null,null,null,null,null,null,null,null,null,null,null,null,null,null,null,null,null,{"$f":"LEN(H18)","v":0}]
[null,null,null,null,null,null,"分行",null,null,null,null,null,null,null,null,null,null,null,null,null,null,null,null,null,null,null,null,null,null,null,null,null,null,{"$f":"V18","v":0}]
[null,null,6,null,null,null,"銀行",null,null,null,null,null,null,null,null,null,null,null,null,null,null,null,null,null,null,null,null,null,null,null,null,null,null,null,{"$f":"LEN(H20)","v":0}]
[null,null,null,null,null,null,"分行",null,null,null,null,null,null,null,null,null,null,null,null,null,null,null,null,null,null,null,null,null,null,null,null,null,null,{"$f":"V20","v":0}]
[null,null,7,null,null,null,"銀行",null,null,null,null,null,null,null,null,null,null,null,null,null,null,null,null,null,null,null,null,null,null,null,null,null,null,null,{"$f":"LEN(H22)","v":0}]
[null,null,null,null,null,null,"分行",null,null,null,null,null,null,null,null,null,null,null,null,null,null,null,null,null,null,null,null,null,null,null,null,null,null,{"$f":"V22","v":0}]
[null,null,8,null,null,null,"銀行",null,null,null,null,null,null,null,null,null,null,null,null,null,null,null,null,null,null,null,null,null,null,null,null,null,null,null,{"$f":"LEN(H24)","v":0}]
[null,null,null,null,null,null,"分行",null,null,null,null,null,null,null,null,null,null,null,null,null,null,null,null,null,null,null,null,null,null,null,null,null,null,{"$f":"V24","v":0}]
[null,null,9,null,null,null,"銀行",null,null,null,null,null,null,null,null,null,null,null,null,null,null,null,null,null,null,null,null,null,null,null,null,null,null,null,{"$f":"LEN(H26)","v":0}]
[null,null,null,null,null,null,"分行",null,null,null,null,null,null,null,null,null,null,null,null,null,null,null,null,null,null,null,null,null,null,null,null,null,null,{"$f":"V26","v":0}]
[null,null,10,null,null,null,"銀行",null,null,null,null,null,null,null,null,null,null,null,null,null,null,null,null,null,null,null,null,null,null,null,null,null,null,null,{"$f":"LEN(H28)","v":0}]
[null,null,null,null,null,null,"分行",null,null,null,null,null,null,null,null,null,null,null,null,null,null,null,null,null,null,null,null,null,null,null,null,null,null,{"$f":"V28","v":0}]
[null,null,null,"申\n請\n人","帳號 / 代號 /\n統 一 編 號",null,null,null,null,null,null,null,null,null,null,null,null,null,null,"合計",null,{"$f":"$AH$30","v":0},null,null,null,null,null,null,null,null,{"$f":"SUM(AE10:AE29)","v":0},null,null,{"$f":"AH11+AH13+AH15+AH17+AH19+AH21+AH23+AH25+AH27+AH29","v":0},{"$f":"LEN(H30)","v":0}]
[null,null,null,null,"姓    名",null,null,null,null,null,null,null,null,null,null,null,null,null,null,null,null,null,null,"代理人：",null,null,null,null,null,null,null,null,null,{"$f":"AH11+AH13+AH15+AH17+AH19+AH21+AH23+AH25+AH27+AH29+$I$2","v":0}]
[null,null,null,null,null,null,null,null,null,null,null,null,null,null,null,null,null,null,null,null,null,null,null,"身分證號碼："]
[null,null,null,null,null,null,null,null,null,null,null,null,null,null,null,null,null,null,null,null,null,null,null,"電話："]
[]
[null,null,null,"為辦理匯款茲授權  貴行自下列存款帳號扣款作為匯款金額",null,null,null,null,null,null,null,null,null,null,null,null,null,null,null,null,null,null,null,null,"存戶簽章(左列帳戶原留印鑑)"]
[null,null,null,"帳號："]
[null,null,null,"＊扣款金額:",null,null,null,{"$f":"$AH$31","v":0}]
[]
[null,null,null,null,"說明：","存戶同意  貴行自上述帳號內扣款金額作為本匯款申請書所載匯款金額及手續費用合計數之全部或一部，倘上述帳號內存款不足扣款金額時，  貴行得不予扣款。\n本申請要以10筆為限，如有超過者請另行填寫一新申請書。"]
[]
[null,null,null,null,null,null,null,null,null,null,null,"證",null,null,null,null,null,"印","照"]
[null,null,null,null,null,null,null,null,null,null,null,"印",null,null,null,null,null,"鑑","合"]
[]
[null,null,null,null,null,null,null,"(G7023) Electronic Application",20201102,null,null,null,null,null,null,null,null,null,null,null,null,null,null,null,null,null,null,null,null,null,"3-1"]
[null,"Note:","使用此申請書時，本人/本公司同意不更動除填記欄位以外之申請書內容及文字，若更動該申請書內容或文字而造成  貴行損失時願負一切責任。"]
[]
[null,null,null,null,null,null,null,null,null,"日 商 瑞 穗 銀 行",null,null,null,null,null,null,null,null,{"$f":"$S$5","v":"臺北"},null,"分行"]
[null,null,null,null,null,null,null,null,null,"Mizuho Bank, Ltd.      匯款申請書 (多筆)"]
[null,null,null,null,null,null,null,null,null,null,null,null,null,null,"中華民國",{"$f":"IF($P$7=\"\",\"\",$P$7)","v":""},null,"年",{"$f":"IF($S$7=\"\",\"\",$S$7)","v":""},"月",{"$f":"IF($U$7=\"\",\"\",$U$7)","v":""},"日"]
[null,null,null,"解 款 行",null,null,null,"收   款   人   帳   號   /   戶   名",null,null,null,null,null,null,null,null,null,null,null,null,null,"匯   款   金   額",null,null,null,null,null,null,null,null,"手續費"]
[null,null,null,null,null,null,null,null,null,null,null,null,null,null,null,null,null,null,null,null,null,"億仟佰 拾萬仟 佰拾元 "]
[null,null,1,{"$f":"IF(D10=\"\",\"\",D10)","v":""},null,null,"銀行",{"$f":"IF(H10=\"\",\"\",H10)","v":""},null,null,null,null,null,null,null,null,null,null,null,null,null,{"$f":"IF(V10=\"\",\"\",V10)","v":""},null,null,null,null,null,null,null,null,{"$f":"IF(AE10=\"\",\"\",AE10)","v":""}]
[null,null,null,{"$f":"IF(D11=\"\",\"\",D11)","v":""},null,null,"分行","",null,null,null,null,null,null,null,null,null,null,null,null,null,null,null,null,null,null,null,null,null,null,null,"②匯款存查聯"]
[null,null,2,"",null,null,"銀行","",null,null,null,null,null,null,null,null,null,null,null,null,null,{"$f":"IF(V12=\"\",\"\",V12)","v":""},null,null,null,null,null,null,null,null,{"$f":"IF(AE12=\"\",\"\",AE12)","v":""}]
[null,null,null,"",null,null,"分行",""]
[null,null,3,"",null,null,"銀行","",null,null,null,null,null,null,null,null,null,null,null,null,null,{"$f":"IF(V14=\"\",\"\",V14)","v":""},null,null,null,null,null,null,null,null,{"$f":"IF(AE14=\"\",\"\",AE14)","v":""}]
[null,null,null,"",null,null,"分行",""]
[null,null,4,"",null,null,"銀行","",null,null,null,null,null,null,null,null,null,null,null,null,null,{"$f":"IF(V16=\"\",\"\",V16)","v":""},null,null,null,null,null,null,null,null,{"$f":"IF(AE16=\"\",\"\",AE16)","v":""}]
[null,null,null,"",null,null,"分行",""]
[null,null,5,"",null,null,"銀行","",null,null,null,null,null,null,null,null,null,null,null,null,null,{"$f":"IF(V18=\"\",\"\",V18)","v":""},null,null,null,null,null,null,null,null,{"$f":"IF(AE18=\"\",\"\",AE18)","v":""}]
[null,null,null,"",null,null,"分行",""]
[null,null,6,"",null,null,"銀行","",null,null,null,null,null,null,null,null,null,null,null,null,null,{"$f":"IF(V20=\"\",\"\",V20)","v":""},null,null,null,null,null,null,null,null,{"$f":"IF(AE20=\"\",\"\",AE20)","v":""}]
[null,null,null,"",null,null,"分行",""]
[null,null,7,"",null,null,"銀行","",null,null,null,null,null,null,null,null,null,null,null,null,null,{"$f":"IF(V22=\"\",\"\",V22)","v":""},null,null,null,null,null,null,null,null,{"$f":"IF(AE22=\"\",\"\",AE22)","v":""}]
[null,null,null,"",null,null,"分行",""]
[null,null,8,"",null,null,"銀行","",null,null,null,null,null,null,null,null,null,null,null,null,null,{"$f":"IF(V24=\"\",\"\",V24)","v":""},null,null,null,null,null,null,null,null,{"$f":"IF(AE24=\"\",\"\",AE24)","v":""}]
[null,null,null,"",null,null,"分行",""]
[null,null,9,"",null,null,"銀行","",null,null,null,null,null,null,null,null,null,null,null,null,null,{"$f":"IF(V26=\"\",\"\",V26)","v":""},null,null,null,null,null,null,null,null,{"$f":"IF(AE26=\"\",\"\",AE26)","v":""}]
[null,null,null,"",null,null,"分行",""]
[null,null,10,"",null,null,"銀行","",null,null,null,null,null,null,null,null,null,null,null,null,null,{"$f":"IF(V28=\"\",\"\",V28)","v":""},null,null,null,null,null,null,null,null,{"$f":"IF(AE28=\"\",\"\",AE28)","v":""}]
[null,null,null,"",null,null,"分行",""]
[null,null,null,"申\n請\n人","帳號 / 代號 /\n統 一 編 號",null,null,"",null,null,null,null,null,null,null,null,null,null,null,"合計",null,{"$f":"$AH$30","v":0},null,null,null,null,null,null,null,null,{"$f":"IF(AE30=\"\",\"\",AE30)","v":0}]
[null,null,null,null,"姓    名",null,null,"",null,null,null,null,null,null,null,null,null,null,null,null,null,null,null,"代理人：",null,{"$f":"IF(Z31=\"\",\"\",Z31)","v":""}]
[null,null,null,null,null,null,null,null,null,null,null,null,null,null,null,null,null,null,null,null,null,null,null,"身分證號碼：",null,null,{"$f":"IF(AA32=\"\",\"\",AA32)","v":""}]
[null,null,null,null,null,null,null,null,null,null,null,null,null,null,null,null,null,null,null,null,null,null,null,"電話：",null,{"$f":"IF(Z33=\"\",\"\",Z33)","v":""}]
[]
[]
[]
[null,null,null,null,null,null,null,null,null,null,null,null,null,null,"金資匯款：",null,null,null,null,null,null,null,null,"申請課："]
[null,null,null,"相\n對\n科\n目"]
[null,null,null,null,null,null,null,null,null,null,null,null,null,null,"主",null,null,null,"櫃",null,null,null,null,"主管",null,null,null,"櫃"]
[]
[null,null,null,null,null,null,null,null,null,null,null,null,null,null,"管",null,null,null,"員",null,null,null,null,"管",null,null,null,"員"]
[]
[]
[null,null,null,null,null,null,null,"(G7023) Electronic Application",{"$f":"$I$44","v":20201102},null,null,null,null,null,null,null,null,null,null,null,null,null,null,null,null,null,null,null,null,null,"3-2"]
[null,"Note:","使用此申請書時，本人/本公司同意不更動除填記欄位以外之申請書內容及文字，若更動該申請書內容或文字而造成  貴行損失時願負一切責任。"]
[]
[null,null,null,null,null,null,null,null,null,"日 商 瑞 穗 銀 行",null,null,null,null,null,null,null,null,{"$f":"$S$5","v":"臺北"},null,"分行"]
[null,null,null,null,null,null,null,null,null,"Mizuho Bank, Ltd.      匯款申請書 (多筆)"]
[null,null,null,null,null,null,null,null,null,null,null,null,null,null,"中華民國",{"$f":"IF($P$7=\"\",\"\",$P$7)","v":""},null,"年",{"$f":"IF($S$7=\"\",\"\",$S$7)","v":""},"月",{"$f":"IF($U$7=\"\",\"\",$U$7)","v":""},"日"]
[null,null,null,"解 款 行",null,null,null,"收   款   人   帳   號   /   戶   名",null,null,null,null,null,null,null,null,null,null,null,null,null,"匯   款   金   額",null,null,null,null,null,null,null,null,"手續費"]
[null,null,null,null,null,null,null,null,null,null,null,null,null,null,null,null,null,null,null,null,null,"億仟佰 拾萬仟 佰拾元 "]
[null,null,1,{"$f":"IF(D10=\"\",\"\",D10)","v":""},null,null,"銀行",{"$f":"IF(H10=\"\",\"\",H10)","v":""},null,null,null,null,null,null,null,null,null,null,null,null,null,{"$f":"IF(V10=\"\",\"\",V10)","v":""},null,null,null,null,null,null,null,null,{"$f":"IF(AE10=\"\",\"\",AE10)","v":""}]
[null,null,null,{"$f":"IF(D11=\"\",\"\",D11)","v":""},null,null,"分行","",null,null,null,null,null,null,null,null,null,null,null,null,null,null,null,null,null,null,null,null,null,null,null,"③客戶留底／收據"]
[null,null,2,"",null,null,"銀行","",null,null,null,null,null,null,null,null,null,null,null,null,null,{"$f":"IF(V12=\"\",\"\",V12)","v":""},null,null,null,null,null,null,null,null,{"$f":"IF(AE12=\"\",\"\",AE12)","v":""}]
[null,null,null,"",null,null,"分行",""]
[null,null,3,"",null,null,"銀行","",null,null,null,null,null,null,null,null,null,null,null,null,null,{"$f":"IF(V14=\"\",\"\",V14)","v":""},null,null,null,null,null,null,null,null,{"$f":"IF(AE14=\"\",\"\",AE14)","v":""}]
[null,null,null,"",null,null,"分行",""]
[null,null,4,"",null,null,"銀行","",null,null,null,null,null,null,null,null,null,null,null,null,null,{"$f":"IF(V16=\"\",\"\",V16)","v":""},null,null,null,null,null,null,null,null,{"$f":"IF(AE16=\"\",\"\",AE16)","v":""}]
[null,null,null,"",null,null,"分行",""]
[null,null,5,"",null,null,"銀行","",null,null,null,null,null,null,null,null,null,null,null,null,null,{"$f":"IF(V18=\"\",\"\",V18)","v":""},null,null,null,null,null,null,null,null,{"$f":"IF(AE18=\"\",\"\",AE18)","v":""}]
[null,null,null,"",null,null,"分行",""]
[null,null,6,"",null,null,"銀行","",null,null,null,null,null,null,null,null,null,null,null,null,null,{"$f":"IF(V20=\"\",\"\",V20)","v":""},null,null,null,null,null,null,null,null,{"$f":"IF(AE20=\"\",\"\",AE20)","v":""}]
[null,null,null,"",null,null,"分行",""]
[null,null,7,"",null,null,"銀行","",null,null,null,null,null,null,null,null,null,null,null,null,null,{"$f":"IF(V22=\"\",\"\",V22)","v":""},null,null,null,null,null,null,null,null,{"$f":"IF(AE22=\"\",\"\",AE22)","v":""}]
[null,null,null,"",null,null,"分行",""]
[null,null,8,"",null,null,"銀行","",null,null,null,null,null,null,null,null,null,null,null,null,null,{"$f":"IF(V24=\"\",\"\",V24)","v":""},null,null,null,null,null,null,null,null,{"$f":"IF(AE24=\"\",\"\",AE24)","v":""}]
[null,null,null,"",null,null,"分行",""]
[null,null,9,"",null,null,"銀行","",null,null,null,null,null,null,null,null,null,null,null,null,null,{"$f":"IF(V26=\"\",\"\",V26)","v":""},null,null,null,null,null,null,null,null,{"$f":"IF(AE26=\"\",\"\",AE26)","v":""}]
[null,null,null,"",null,null,"分行",""]
[null,null,10,"",null,null,"銀行","",null,null,null,null,null,null,null,null,null,null,null,null,null,{"$f":"IF(V28=\"\",\"\",V28)","v":""},null,null,null,null,null,null,null,null,{"$f":"IF(AE28=\"\",\"\",AE28)","v":""}]
[null,null,null,"",null,null,"分行",""]
[null,null,null,"申\n請\n人","帳號 / 代號 /\n統 一 編 號",null,null,"",null,null,null,null,null,null,null,null,null,null,null,"合計",null,{"$f":"$AH$30","v":0},null,null,null,null,null,null,null,null,{"$f":"IF(AE30=\"\",\"\",AE30)","v":0}]
[null,null,null,null,"姓    名",null,null,"",null,null,null,null,null,null,null,null,null,null,null,null,null,null,null,"代理人：",null,{"$f":"IF(Z31=\"\",\"\",Z31)","v":""}]
[null,null,null,null,null,null,null,null,null,null,null,null,null,null,null,null,null,null,null,null,null,null,null,"身分證號碼：",null,null,{"$f":"IF(AA32=\"\",\"\",AA32)","v":""}]
[null,null,null,null,null,null,null,null,null,null,null,null,null,null,null,null,null,null,null,null,null,null,null,"電話：",null,{"$f":"IF(Z33=\"\",\"\",Z33)","v":""}]
[]
[null,null,null,"說明：",null,null,"一﹑","跨行匯款係經由電腦作業匯至他行庫，如遇電腦故障或連線中斷等因素，可能無法當日完成匯款。匯款人同意　貴行得由　貴行往來行庫辦理匯款事宜。"]
[]
[null,null,null,null,null,null,"二﹑","匯款申請人應填寫要項請填寫正確，倘發生錯誤應自負責任，因而遭退匯時，本行並得加收退匯匯費。"]
[]
[null,null,null,null,null,null,"三﹑","如有查詢、更正、退匯時，請持本聯來行洽辦。"]
[null,null,null,null,null,null,"四﹑","本筆匯款請匯款人自行通知收款人。"]
[null,null,null,null,null,null,"五﹑","本收據印花稅總繳統一編號",null,null,null,null,null,null,null,{"$f":"VLOOKUP(S5,$AH$5:$AI$7,2,FALSE)","v":"96978630"},null,null,null,"。"]
[]
[]
[null,null,null,null,null,null,null,"(G7023) Electronic Application",{"$f":"$I$44","v":20201102},null,null,null,null,null,null,null,null,null,null,null,null,null,null,null,null,null,null,null,null,null,"3-3"]
[null,"Note:","使用此申請書時，本人/本公司同意不更動除填記欄位以外之申請書內容及文字，若更動該申請書內容或文字而造成  貴行損失時願負一切責任。"]